fUSD/lending_fUSD_20250219
["ID","MTS","AMOUNT","RATE_DAILY","PERIOD"]
[353668457,1739986968737,-500.0,0.00010958,2]
[353668458,1739986968759,-500.0,0.00010958,2]
[353668459,1739986968780,-500.0,0.00010958,2]
[353668460,1739986968802,-508.66365507,0.00010958,2]
[353668461,1739986968825,-1707.94,0.00010958,2]
[353668462,1739986968847,-500.0,0.00010958,2]
[353668463,1739986968868,-500.0,0.00010958,2]
[353668464,1739986968892,-500.0,0.00010958,2]
[353668465,1739986968913,-500.0,0.00010958,2]
[353668466,1739986968934,-500.0,0.00010958,2]
[353668467,1739986968956,-837.67,0.00010958,2]
[353668468,1739986968978,-561.36,0.00010958,2]
[353668469,1739986969000,-500.0,0.00010958,2]
[353668470,1739986969024,-500.0,0.00010958,2]
[353668471,1739986969046,-500.0,0.00010958,2]
[353668472,1739986969069,-261.26,0.00010958,2]
[353668473,1739986969092,-816.81,0.00010958,2]
[353668474,1739986969118,-1511.83,0.00010958,2]
[353668475,1739986969140,-500.0,0.00010958,2]
[353668476,1739986969163,-500.0,0.00010958,2]
[353668477,1739986969185,-500.0,0.00010958,2]
[353668478,1739986969208,-2495.84,0.00010958,2]
[353668479,1739986969229,-744.98,0.00010958,2]
[353668480,1739986969251,-500.53,0.00010958,2]
[353668481,1739986969272,-500.0,0.00010958,2]
[353668482,1739986969294,-1354.12,0.00010958,2]
[353668483,1739986969316,-671.52,0.00010958,2]
[353668484,1739986969337,-500.0,0.00010958,2]
[353668485,1739986969359,-500.0,0.00010958,2]
[353668486,1739986969380,-500.0,0.00010958,2]
[353668487,1739986969401,-165.3546951,0.00010958,2]
[353668488,1739986969422,-589.8,0.00010958,2]
[353668489,1739986969444,-1383.54,0.00010958,2]
[353668490,1739986969468,-500.0,0.00010958,2]
[353668491,1739986969491,-500.0,0.00010958,2]
[353668492,1739986969513,-500.0,0.00010958,2]
[353668493,1739986969537,-500.0,0.00010958,2]
[353668494,1739986969559,-716.42,0.00010958,2]
[353668495,1739986969582,-500.0,0.00010958,2]
[353668496,1739986969605,-2477.23,0.00010958,2]
[353668497,1739986969626,-500.0,0.00010958,2]
[353668498,1739986969647,-500.0,0.00010958,2]
[353668499,1739986969669,-554.89,0.00010958,2]
[353668500,1739986969692,-857.39,0.00010958,2]
[353668501,1739986969717,-2798.24,0.00010958,2]
[353668502,1739986969739,-507.11513431,0.00010958,2]
[353668503,1739986969760,-1878.9,0.00010958,2]
[353668504,1739986969782,-500.0,0.00010958,2]
[353668505,1739986969805,-801.96,0.00010958,2]
[353668506,1739986969825,-500.0,0.00010958,2]
[353668507,1739986969847,-500.0,0.00010958,2]
[353668508,1739986969868,-525.08,0.00010958,2]
[353668509,1739986969892,-500.0,0.00010958,2]
[353668510,1739986969914,-740.28,0.00010958,2]
[353668511,1739986969936,-2438.11,0.00010958,2]
[353668512,1739986969957,-500.0,0.00010958,2]
[353668513,1739986969978,-501.80143918,0.00010958,2]
[353668514,1739986969999,-500.0,0.00010958,2]
[353668515,1739986970021,-1466.93,0.00010958,2]
[353668516,1739986970042,-500.0,0.00010958,2]
[353668517,1739986970062,-500.0,0.00010958,2]
[353668518,1739986970083,-919.63,0.00010958,2]
[353668519,1739986970105,-525.24666923,0.00010958,2]
[353668520,1739986970127,-2623.12,0.00010958,2]
[353668521,1739986970150,-1598.95,0.00010958,2]
[353668522,1739986970170,-500.0,0.00010958,2]
[353668523,1739986970192,-634.27,0.00010958,2]
[353668524,1739986970214,-502.30961449,0.00010958,2]
[353668525,1739986970421,-500.0,0.00010958,2]
[353668526,1739986970444,-1158.67,0.00010958,2]
[353668527,1739986970468,-520.95,0.00010958,2]
[353668528,1739986970490,-500.0,0.00010958,2]
[353668529,1739986970514,-1063.45,0.00010958,2]
[353668530,1739986970535,-511.3389512,0.00010958,2]
[353668531,1739986970557,-819.74,0.00010958,2]
[353668532,1739986970578,-500.0,0.00010958,2]
[353668533,1739986970599,-500.0,0.00010958,2]
[353668534,1739986970621,-674.04,0.00010958,2]
[353668535,1739986970644,-500.0,0.00010958,2]
[353668536,1739986970666,-971.03,0.00010958,2]
[353668537,1739986970689,-1812.51,0.00010958,2]
[353668538,1739986970710,-2485.02,0.00010958,2]
[353668539,1739986970731,-502.93413517,0.00010958,2]
[353668540,1739986970752,-500.0,0.00010958,2]
[353668541,1739986970773,-500.0,0.00010958,2]
[353668542,1739986970795,-1358.04,0.00010958,2]
[353668543,1739986970816,-500.0,0.00010958,2]
[353668544,1739986970838,-669.81,0.00010958,2]
[353668545,1739986970859,-500.0,0.00010958,2]
[353668546,1739986970881,-500.0,0.00010958,2]
[353668547,1739986970904,-1305.34,0.00010958,2]
[353668548,1739986970925,-500.0,0.00010958,2]
[353668549,1739986970947,-500.0,0.00010958,2]
[353668550,1739986970968,-500.0,0.00010958,2]
[353668551,1739986970989,-500.0,0.00010958,2]
[353668552,1739986971009,-500.0,0.00010958,2]
[353668553,1739986971030,-500.0,0.00010958,2]
[353668554,1739986971050,-510.00496611,0.00010958,2]
[353668555,1739986971071,-507.93358603,0.00010958,2]
[353668556,1739986971092,-500.0,0.00010958,2]
[353668557,1739986971115,-500.0,0.00010958,2]
[353668558,1739986971136,-500.0,0.00010958,2]
[353668559,1739986971157,-500.0,0.00010958,2]
[353668560,1739986971178,-839.5,0.00010958,2]
[353668561,1739986971202,-1932.99,0.00010958,2]
[353668562,1739986971223,-819.06,0.00010958,2]
[353668563,1739986971244,-500.0,0.00010958,2]
[353668564,1739986971266,-1333.44,0.00010958,2]
[353668565,1739986971286,-500.0,0.00010958,2]
[353668566,1739986971308,-1280.1,0.00010958,2]
[353668567,1739986971330,-1821.57,0.00010958,2]
[353668568,1739986971351,-500.0,0.00010958,2]
[353668569,1739986971372,-500.0,0.00010958,2]
[353668570,1739986971393,-914.85,0.00010958,2]
[353668571,1739986971413,-500.0,0.00010958,2]
[353668572,1739986971434,-560.88,0.00010958,2]
[353668573,1739986971457,-500.0,0.00010958,2]
[353668574,1739986971478,-500.0,0.00010958,2]
[353668575,1739986971500,-1471.53,0.00010958,2]
[353668576,1739986971521,-500.0,0.00010958,2]
[353668577,1739986971543,-1236.47,0.00010958,2]
[353668578,1739986971564,-531.12984117,0.00010958,2]
[353668579,1739986971585,-2253.67,0.00010958,2]
[353668580,1739986971606,-1865.24,0.00010958,2]
[353668581,1739986971628,-1003.93,0.00010958,2]
[353668582,1739986971649,-618.28,0.00010958,2]
[353668583,1739986971671,-501.77784524,0.00010958,2]
[353668584,1739986971691,-748.0,0.00010958,2]
[353668585,1739986971715,-725.12,0.00010958,2]
[353668586,1739986971736,-500.0,0.00010958,2]
[353668587,1739986971756,-500.0,0.00010958,2]
[353668588,1739986971778,-529.79,0.00010958,2]
[353668589,1739986971800,-2082.83,0.00010958,2]
[353668590,1739986971820,-500.0,0.00010958,2]
[353668591,1739986971842,-500.0,0.00010958,2]
[353668592,1739986971864,-500.0,0.00010958,2]
[353668593,1739986971885,-500.0,0.00010958,2]
[353668594,1739986971909,-500.0,0.00010958,2]
[353668595,1739986971931,-944.46,0.00010958,2]
[353668596,1739986971954,-2152.29,0.00010958,2]
[353668597,1739986971975,-500.0,0.00010958,2]
[353668598,1739986971997,-1524.59,0.00010958,2]
[353668599,1739986972018,-500.0,0.00010958,2]
[353668600,1739986972039,-500.0,0.00010958,2]
[353668601,1739986972061,-681.33,0.00010958,2]
[353668602,1739986972082,-642.47,0.00010958,2]
[353668603,1739986972108,-500.0,0.00010958,2]
[353668604,1739986972130,-1070.85,0.00010958,2]
[353668605,1739986972152,-500.0,0.00010958,2]
[353668606,1739986972173,-609.31,0.00010958,2]
[353668607,1739986972196,-500.0,0.00010958,2]
[353668608,1739986972217,-500.0,0.00010958,2]
[353668609,1739986972238,-500.0,0.00010958,2]
[353668610,1739986972261,-1651.7,0.00010958,2]
[353668611,1739986972283,-1309.23,0.00010958,2]
[353668612,1739986972304,-616.66,0.00010958,2]
[353668613,1739986972325,-632.87,0.00010958,2]
[353668614,1739986972346,-507.07363615,0.00010958,2]
[353668615,1739986972368,-500.0,0.00010958,2]
[353668616,1739986972389,-500.0,0.00010958,2]
[353668617,1739986972411,-1552.62,0.00010958,2]
[353668618,1739986972432,-1776.39,0.00010958,2]
[353668619,1739986972455,-500.0,0.00010958,2]
[353668620,1739986972478,-856.54,0.00010958,2]
[353668621,1739986972501,-500.0,0.00010958,2]
[353668622,1739986972523,-502.22945296,0.00010958,2]
[353668623,1739986972544,-501.8188706,0.00010958,2]
[353668624,1739986972572,-809.31,0.00010958,2]
[353668625,1739986972594,-1842.68,0.00010958,2]
[353668626,1739986972616,-442.11318057,0.00010958,2]
[353668627,1739986972637,-500.0,0.00010958,2]
[353668628,1739986972659,-500.0,0.00010958,2]
[353668629,1739986972680,-500.0,0.00010958,2]
[353668630,1739986972703,-500.0,0.00010958,2]
[353668631,1739986972724,-500.0,0.00010958,2]
[353668632,1739986972746,-886.63,0.00010958,2]
[353668633,1739986972768,-500.0,0.00010958,2]
[353668634,1739986972790,-1658.86,0.00010958,2]
[353668635,1739986972811,-500.0,0.00010958,2]
[353668636,1739986972834,-1962.68,0.00010958,2]
[353668637,1739986972856,-500.0,0.00010958,2]
[353668638,1739986972880,-807.37,0.00010958,2]
[353668639,1739986972903,-806.59,0.00010958,2]
[353668640,1739986972924,-500.0,0.00010958,2]
[353668641,1739986972946,-500.0,0.00010958,2]
[353668642,1739986972969,-500.0,0.00010958,2]
[353668643,1739986972994,-570.48,0.00010958,2]
[353668644,1739986973016,-500.0,0.00010958,2]
[353668645,1739986973038,-1658.32,0.00010958,2]
[353668646,1739986973061,-1296.83,0.00010958,2]
[353668647,1739986973083,-1882.15,0.00010958,2]
[353668648,1739986973107,-500.0,0.00010958,2]
[353668649,1739986973130,-500.0,0.00010958,2]
[353668650,1739986973153,-939.3,0.00010958,2]
[353668651,1739986973175,-500.0,0.00010958,2]
[353668652,1739986973199,-857.33,0.00010958,2]
[353668653,1739986973221,-500.0,0.00010958,2]
[353668654,1739986973243,-500.0,0.00010958,2]
[353668655,1739986973265,-500.0,0.00010958,2]
[353668656,1739986973288,-1418.8,0.00010958,2]
[353668657,1739986973310,-500.0,0.00010958,2]
[353668658,1739986973331,-500.0,0.00010958,2]
[353668659,1739986973353,-283.24785932,0.00010958,2]
[353668660,1739986973375,-500.0,0.00010958,2]
[353668661,1739986973397,-2632.01,0.00010958,2]
[353668662,1739986973419,-500.0,0.00010958,2]
[353668663,1739986973440,-500.0,0.00010958,2]
[353668664,1739986973468,-1411.22,0.00010958,2]
[353668665,1739986973489,-690.83,0.00010958,2]
[353668666,1739986973511,-500.0,0.00010958,2]
[353668667,1739986973532,-500.0,0.00010958,2]
[353668668,1739986973553,-356.16,0.00010958,2]
[353668669,1739986973574,-2069.19,0.00010958,2]
[353668670,1739986973595,-500.0,0.00010958,2]
[353668671,1739986973615,-500.0,0.00010958,2]
[353668672,1739986973637,-500.0,0.00010958,2]
[353668673,1739986973658,-1670.81,0.00010958,2]
[353668674,1739986973679,-769.82,0.00010958,2]
[353668675,1739986973701,-867.41,0.00010958,2]
[353668676,1739986973723,-500.0,0.00010958,2]
[353668677,1739986973931,-1765.3,0.00010958,2]
[353668678,1739986973955,-500.0,0.00010958,2]
[353668679,1739986973977,-500.0,0.00010958,2]
[353668680,1739986974000,-1370.86,0.00010958,2]
[353668681,1739986974022,-500.0,0.00010958,2]
[353668682,1739986974044,-500.0,0.00010958,2]
[353668683,1739986974066,-1531.76,0.00010958,2]
[353668684,1739986974088,-500.0,0.00010958,2]
[353668685,1739986974114,-662.65,0.00010958,2]
[353668686,1739986974136,-633.19,0.00010958,2]
[353668687,1739986974159,-1131.87,0.00010958,2]
[353668688,1739986974180,-500.0,0.00010958,2]
[353668689,1739986974205,-578.38,0.00010958,2]
[353668690,1739986974227,-500.0,0.00010958,2]
[353668691,1739986974248,-1857.05,0.00010958,2]
[353668692,1739986974269,-500.0,0.00010958,2]
[353668693,1739986974289,-619.03384542,0.00010958,2]
[353668694,1739986974310,-500.0,0.00010958,2]
[353668695,1739986974331,-500.0,0.00010958,2]
[353668696,1739986974354,-500.0,0.00010958,2]
[353668697,1739986974375,-509.07773861,0.00010958,2]
[353668698,1739986974396,-500.0,0.00010958,2]
[353668699,1739986974418,-500.0,0.00010958,2]
[353668700,1739986974441,-2518.5,0.00010958,2]
[353668701,1739986974463,-502.72214065,0.00010958,2]
[353668702,1739986974484,-500.0,0.00010958,2]
[353668703,1739986974507,-840.45,0.00010958,2]
[353668704,1739986974528,-500.0,0.00010958,2]
[353668705,1739986974551,-3303.06,0.00010958,2]
[353668706,1739986974573,-901.36,0.00010958,2]
[353668707,1739986974596,-1610.13,0.00010958,2]
[353668708,1739986974618,-500.0,0.00010958,2]
[353668709,1739986974638,-500.0,0.00010958,2]
[353668710,1739986974660,-506.64384469,0.00010958,2]
[353668711,1739986974682,-589.07,0.00010958,2]
[353668712,1739986974704,-1567.58,0.00010958,2]
[353668713,1739986974725,-500.0,0.00010958,2]
[353668714,1739986974747,-500.0,0.00010958,2]
[353668715,1739986974769,-500.0,0.00010958,2]
[353668716,1739986974791,-1832.34,0.00010958,2]
[353668717,1739986974815,-5677.91,0.00010958,2]
[353668718,1739986974838,-500.0,0.00010958,2]
[353668719,1739986974860,-500.86718476,0.00010958,2]
[353668720,1739986974883,-500.0,0.00010958,2]
[353668721,1739986974905,-503.97093074,0.00010958,2]
[353668722,1739986974927,-500.0,0.00010958,2]
[353668723,1739986974949,-500.0,0.00010958,2]
[353668724,1739986974972,-500.0,0.00010958,2]
[353668725,1739986974995,-845.34,0.00010958,2]
[353668726,1739986975016,-500.0,0.00010958,2]
[353668727,1739986975038,-573.91,0.00010958,2]
[353668728,1739986975061,-1957.19,0.00010958,2]
[353668729,1739986975083,-500.0,0.00010958,2]
[353668730,1739986975106,-504.11,0.00010958,2]
[353668731,1739986975129,-535.78,0.00010958,2]
[353668732,1739986975152,-850.34,0.00010958,2]
[353668733,1739986975174,-1048.17,0.00010958,2]
[353668734,1739986975196,-767.34,0.00010958,2]
[353668735,1739986975219,-502.20209436,0.00010958,2]
[353668736,1739986975249,-563.62,0.00010958,2]
[353668737,1739986975276,-1123.94,0.00010958,2]
[353668738,1739986975299,-1091.09,0.00010958,2]
[353668739,1739986975321,-556.32,0.00010958,2]
[353668740,1739986975343,-500.0,0.00010958,2]
[353668741,1739986975366,-500.0,0.00010958,2]
[353668742,1739986975389,-2302.95,0.00010958,2]
[353668743,1739986975413,-500.0,0.00010958,2]
[353668744,1739986975436,-1864.63,0.00010958,2]
[353668745,1739986975461,-500.0,0.00010958,2]
[353668746,1739986975484,-500.0,0.00010958,2]
[353668747,1739986975508,-500.0,0.00010958,2]
[353668748,1739986975531,-150.0,0.00010958,2]
[353668749,1739986975555,-71799.18416727,0.00010958,2]
[353668750,1739986975578,-1051.230903,0.0001104,2]
[353668751,1739986975601,-1161.17,0.0001104,2]
[353668752,1739986975623,-159.544922,0.0001104,2]
[353668753,1739986975646,-1214.87,0.0001104,2]
[353668754,1739986975668,-153.625135,0.0001104,2]
[353668755,1739986975691,-931.1,0.0001104,2]
[353668756,1739986975715,-1060.018779,0.0001104,2]
[353668757,1739986975738,-702.74,0.0001104,2]
[353668758,1739986975761,-500.0,0.0001104,2]
[353668759,1739986975785,-1378.48,0.0001104,2]
[353668760,1739986975807,-1497.76,0.0001104,2]
[353668761,1739986975835,-1783.2,0.0001104,2]
[353668762,1739986975859,-1154.43,0.0001104,2]
[353668763,1739986975883,-258.954757,0.0001104,2]
[353668764,1739986975908,-2266.81,0.0001104,2]
[353668765,1739986975933,-185.902238,0.0001104,2]
[353668766,1739986975961,-2002.57,0.0001104,2]
[353668767,1739986975988,-1608.39,0.0001104,2]
[353668768,1739986976013,-3867.58,0.0001104,2]
[353668769,1739986976036,-500.0,0.0001104,2]
[353668770,1739986976060,-2496.27,0.0001104,2]
[353668771,1739986976086,-2828.85,0.0001104,2]
[353668772,1739986976112,-500.0,0.00011041,2]
[353668773,1739986976135,-500.0,0.00011041,2]
[353668774,1739986976159,-500.0,0.00011041,2]
[353668775,1739986976182,-500.0,0.00011041,2]
[353668776,1739986976208,-500.0,0.00011041,2]
[353668777,1739986976230,-500.0,0.00011041,2]
[353668778,1739986976253,-500.0,0.00011041,2]
[353668779,1739986976276,-500.0,0.00011041,2]
[353668780,1739986976299,-500.0,0.00011041,2]
[353668781,1739986976321,-610.32,0.00011041,2]
[353668782,1739986976344,-500.0,0.00011041,2]
[353668783,1739986976366,-217.44237403,0.00011041,2]
[353668784,1739986976388,-500.0,0.00011041,2]
[353668785,1739986976410,-650.1,0.00011041,2]
[353668786,1739986976437,-500.0,0.00011041,2]
[353668787,1739986976461,-424.66813149,0.00011041,2]
[353668788,1739986976484,-500.0,0.00011041,2]
[353668789,1739986976505,-500.0,0.00011041,2]
[353668790,1739986976528,-500.0,0.00011041,2]
[353668791,1739986976552,-675.1,0.00011041,2]
[353668792,1739986976574,-500.0,0.00011041,2]
[353668793,1739986976596,-500.0,0.00011041,2]
[353668794,1739986976618,-500.0,0.00011041,2]
[353668795,1739986976641,-572.6,0.00011041,2]
[353668796,1739986976664,-722.17,0.00011041,2]
[353668797,1739986976686,-500.0,0.00011041,2]
[353668798,1739986976709,-500.0,0.00011041,2]
[353668799,1739986976732,-500.0,0.00011041,2]
[353668800,1739986976755,-651.53,0.00011041,2]
[353668801,1739986976778,-500.0,0.00011041,2]
[353668802,1739986976800,-830.63,0.00011041,2]
[353668803,1739986976823,-500.0,0.00011041,2]
[353668804,1739986976846,-548.03,0.00011041,2]
[353668805,1739986976869,-624.44,0.00011041,2]
[353668806,1739986976893,-500.0,0.00011041,2]
[353668807,1739986976916,-586.77,0.00011041,2]
[353668808,1739986976938,-500.0,0.00011041,2]
[353668809,1739986976961,-500.0,0.00011041,2]
[353668810,1739986976984,-593.92,0.00011041,2]
[353668811,1739986977006,-588.8038936,0.00011041,2]
[353668812,1739986977032,-500.0,0.00011041,2]
[353668813,1739986977055,-500.0,0.00011041,2]
[353668814,1739986977078,-500.0,0.00011041,2]
[353668815,1739986977103,-500.0,0.00011041,2]
[353668816,1739986977126,-500.0,0.00011041,2]
[353668817,1739986977150,-500.0,0.00011041,2]
[353668818,1739986977172,-502.95,0.00011041,2]
[353668819,1739986977198,-500.0,0.00011041,2]
[353668820,1739986977221,-500.0,0.00011041,2]
[353668821,1739986977243,-665.85,0.00011041,2]
[353668822,1739986977266,-579.79,0.00011041,2]
[353668823,1739986977288,-500.0,0.00011041,2]
[353668824,1739986977310,-601.36,0.00011041,2]
[353668825,1739986977332,-1018.2,0.00011041,2]
[353668826,1739986977354,-670.1,0.00011041,2]
[353668827,1739986977635,-684.29,0.00011041,2]
[353668828,1739986977661,-500.0,0.00011041,2]
[353668829,1739986977690,-559.06,0.00011041,2]
[353668830,1739986977720,-561.35,0.00011041,2]
[353668831,1739986977743,-500.0,0.00011041,2]
[353668832,1739986977766,-500.0,0.00011041,2]
[353668833,1739986977789,-509.07,0.00011041,2]
[353668834,1739986977812,-500.0,0.00011041,2]
[353668835,1739986977835,-500.0,0.00011041,2]
[353668836,1739986977858,-934.2,0.00011041,2]
[353668837,1739986977882,-500.0,0.00011041,2]
[353668838,1739986977906,-500.0,0.00011041,2]
[353668839,1739986977930,-500.0,0.00011041,2]
[353668840,1739986977954,-891.28,0.00011041,2]
[353668841,1739986977977,-500.0,0.00011041,2]
[353668842,1739986978000,-500.0,0.00011041,2]
[353668843,1739986978024,-500.0,0.00011041,2]
[353668844,1739986978048,-500.0,0.00011041,2]
[353668845,1739986978072,-500.0,0.00011041,2]
[353668846,1739986978096,-1071.39,0.00011041,2]
[353668847,1739986978121,-500.0,0.00011041,2]
[353668848,1739986978143,-500.0,0.00011041,2]
[353668849,1739986978167,-500.0,0.00011041,2]
[353668850,1739986978191,-645.5,0.00011041,2]
[353668851,1739986978214,-581.49769047,0.00011041,2]
[353668852,1739986978236,-502.09797345,0.00011041,2]
[353668853,1739986978262,-983.6,0.00011041,2]
[353668854,1739986978286,-500.0,0.00011041,2]
[353668855,1739986978309,-500.0,0.00011041,2]
[353668856,1739986978332,-868.71,0.00011041,2]
[353668857,1739986978355,-500.0,0.00011041,2]
[353668858,1739986978378,-502.44,0.00011041,2]
[353668859,1739986978402,-500.0,0.00011041,2]
[353668860,1739986978425,-500.0,0.00011041,2]
[353668861,1739986978449,-747.49,0.00011041,2]
[353668862,1739986978476,-500.0,0.00011041,2]
[353668863,1739986978498,-500.0,0.00011041,2]
[353668864,1739986978521,-885.83,0.00011041,2]
[353668865,1739986978545,-500.0,0.00011041,2]
[353668866,1739986978568,-984.05,0.00011041,2]
[353668867,1739986978591,-500.0,0.00011041,2]
[353668868,1739986978614,-535.48,0.00011041,2]
[353668869,1739986978637,-500.0,0.00011041,2]
[353668870,1739986978665,-500.0,0.00011041,2]
[353668871,1739986978689,-670.73,0.00011041,2]
[353668872,1739986978713,-716.96,0.00011041,2]
[353668873,1739986978736,-500.0,0.00011041,2]
[353668874,1739986978759,-500.0,0.00011041,2]
[353668875,1739986978782,-500.0,0.00011041,2]
[353668876,1739986978805,-500.0,0.00011041,2]
[353668877,1739986978828,-500.0,0.00011041,2]
[353668878,1739986978850,-500.0,0.00011041,2]
[353668879,1739986978872,-503.18298192,0.00011041,2]
[353668880,1739986978898,-500.0,0.00011041,2]
[353668881,1739986978923,-603.61,0.00011041,2]
[353668882,1739986978947,-500.0,0.00011041,2]
[353668883,1739986978970,-907.67,0.00011041,2]
[353668884,1739986978993,-750.72,0.00011041,2]
[353668885,1739986979017,-500.0,0.00011041,2]
[353668886,1739986979040,-797.8,0.00011041,2]
[353668887,1739986979063,-500.0,0.00011041,2]
[353668888,1739986979086,-500.0,0.00011041,2]
[353668889,1739986979111,-500.0,0.00011041,2]
[353668890,1739986979136,-500.0,0.00011041,2]
[353668891,1739986979163,-1706.87,0.00011041,2]
[353668892,1739986979186,-500.0,0.00011041,2]
[353668893,1739986979210,-530.96168739,0.00011041,2]
[353668894,1739986979233,-621.37,0.00011041,2]
[353668895,1739986979256,-500.0,0.00011041,2]
[353668896,1739986979279,-500.0,0.00011041,2]
[353668897,1739986979303,-500.0,0.00011041,2]
[353668898,1739986979325,-500.0,0.00011041,2]
[353668899,1739986979348,-832.9,0.00011041,2]
[353668900,1739986979370,-500.0,0.00011041,2]
[353668901,1739986979391,-500.0,0.00011041,2]
[353668902,1739986979413,-1707.94,0.00011041,2]
[353668903,1739986979435,-500.0,0.00011041,2]
[353668904,1739986979458,-500.0,0.00011041,2]
[353668905,1739986979480,-519.75306551,0.00011041,2]
[353668906,1739986979502,-837.67,0.00011041,2]
[353668907,1739986979525,-561.36,0.00011041,2]
[353668908,1739986979548,-1511.83,0.00011041,2]
[353668909,1739986979571,-816.81,0.00011041,2]
[353668910,1739986979594,-500.0,0.00011041,2]
[353668911,1739986979616,-500.0,0.00011041,2]
[353668912,1739986979638,-500.0,0.00011041,2]
[353668913,1739986979662,-2495.84,0.00011041,2]
[353668914,1739986979684,-744.98,0.00011041,2]
[353668915,1739986979707,-500.53,0.00011041,2]
[353668916,1739986979729,-500.0,0.00011041,2]
[353668917,1739986979752,-1354.12,0.00011041,2]
[353668918,1739986979774,-671.52,0.00011041,2]
[353668919,1739986979796,-613.5374111,0.00011041,2]
[353668920,1739986979818,-500.0,0.00011041,2]
[353668921,1739986979840,-589.8,0.00011041,2]
[353668922,1739986979863,-1383.54,0.00011041,2]
[353668923,1739986979888,-500.0,0.00011041,2]
[353668924,1739986979912,-500.0,0.00011041,2]
[353668925,1739986979934,-500.0,0.00011041,2]
[353668926,1739986979958,-500.0,0.00011041,2]
[353668927,1739986979981,-716.42,0.00011041,2]
[353668928,1739986980004,-500.0,0.00011041,2]
[353668929,1739986980028,-2477.23,0.00011041,2]
[353668930,1739986980052,-500.0,0.00011041,2]
[353668931,1739986980076,-857.39,0.00011041,2]
[353668932,1739986980100,-554.89,0.00011041,2]
[353668933,1739986980127,-2798.24,0.00011041,2]
[353668934,1739986980152,-1878.9,0.00011041,2]
[353668935,1739986980174,-500.0,0.00011041,2]
[353668936,1739986980200,-801.96,0.00011041,2]
[353668937,1739986980223,-500.0,0.00011041,2]
[353668938,1739986980246,-525.08,0.00011041,2]
[353668939,1739986980268,-740.28,0.00011041,2]
[353668940,1739986980293,-2438.11,0.00011041,2]
[353668941,1739986980315,-500.0,0.00011041,2]
[353668942,1739986980337,-500.0,0.00011041,2]
[353668943,1739986980360,-1466.93,0.00011041,2]
[353668944,1739986980383,-500.0,0.00011041,2]
[353668945,1739986980407,-500.0,0.00011041,2]
[353668946,1739986980430,-919.63,0.00011041,2]
[353668947,1739986980454,-2623.12,0.00011041,2]
[353668948,1739986980476,-1598.95,0.00011041,2]
[353668949,1739986980499,-634.27,0.00011041,2]
[353668950,1739986980521,-1158.67,0.00011041,2]
[353668951,1739986980544,-520.95,0.00011041,2]
[353668952,1739986980566,-500.0,0.00011041,2]
[353668953,1739986980589,-1063.45,0.00011041,2]
[353668954,1739986980611,-819.74,0.00011041,2]
[353668955,1739986980633,-500.0,0.00011041,2]
[353668956,1739986980655,-674.04,0.00011041,2]